fUSD/lending_fUSD_20250302
["ID","MTS","AMOUNT","RATE_DAILY","PERIOD"]
[355151637,1740936669763,-561.12,0.00026575,2]
[355151638,1740936669773,-533.44,0.00026575,2]
[355151639,1740936669783,-748.22,0.00026575,2]
[355151640,1740936669794,-500.0,0.00026575,2]
[355151641,1740936669804,-500.0,0.00026575,2]
[355151642,1740936669814,-845.83,0.00026575,2]
[355151643,1740936669825,-911.47,0.00026575,2]
[355151644,1740936669846,-551.99,0.00026575,2]
[355151645,1740936669861,-500.0,0.00026575,2]
[355151646,1740936669872,-823.11,0.00026575,2]
[355151647,1740936669886,-786.8,0.00026575,2]
[355151648,1740936669896,-500.0,0.00026575,2]
[355151649,1740936669906,-500.0,0.00026575,2]
[355151650,1740936669917,-597.31,0.00026575,2]
[355151651,1740936669928,-688.82,0.00026575,2]
[355151652,1740936669938,-947.42,0.00026575,2]
[355151653,1740936669948,-1251.58,0.00026575,2]
[355151654,1740936669959,-1020.64,0.00026575,2]
[355151655,1740936669970,-2345.36,0.00026575,2]
[355151656,1740936669980,-1562.13,0.00026575,2]
[355151657,1740936669991,-1688.5,0.00026575,2]
[355151658,1740936670001,-1057.44,0.00026575,2]
[355151659,1740936670011,-1830.8,0.00026575,2]
[355151660,1740936670022,-1336.41,0.00026575,2]
[355151661,1740936670032,-767.39,0.00026575,2]
[355151662,1740936670042,-2213.46,0.00026575,2]
[355151663,1740936670052,-500.0,0.00026575,2]
[355151664,1740936670062,-1366.85,0.00026575,2]
[355151665,1740936670073,-500.0,0.00026575,2]
[355151666,1740936670082,-688.32,0.00026575,2]
[355151667,1740936670092,-2063.11,0.00026575,2]
[355151668,1740936670103,-500.0,0.00026575,2]
[355151669,1740936670113,-500.0,0.00026575,2]
[355151670,1740936670123,-500.0,0.00026575,2]
[355151671,1740936670137,-500.0,0.00026575,2]
[355151672,1740936670148,-620.51,0.00026575,2]
[355151673,1740936670158,-1466.04,0.00026575,2]
[355151674,1740936670169,-518.56,0.00026575,2]
[355151675,1740936670180,-1099.43,0.00026575,2]
[355151676,1740936670190,-1231.49,0.00026575,2]
[355151677,1740936670202,-500.0,0.00026575,2]
[355151678,1740936670212,-500.0,0.00026575,2]
[355151679,1740936670222,-565.79,0.00026575,2]
[355151680,1740936670233,-594.39,0.00026575,2]
[355151681,1740936670243,-500.0,0.00026575,2]
[355151682,1740936670254,-1282.11,0.00026575,2]
[355151683,1740936670264,-500.0,0.00026575,2]
[355151684,1740936670274,-500.0,0.00026575,2]
[355151685,1740936670284,-500.0,0.00026575,2]
[355151686,1740936670295,-1287.52,0.00026575,2]
[355151687,1740936670305,-691.44,0.00026575,2]
[355151688,1740936670316,-1137.27,0.00026575,2]
[355151689,1740936670326,-500.0,0.00026575,2]
[355151690,1740936670337,-975.02,0.00026575,2]
[355151691,1740936670347,-500.0,0.00026575,2]
[355151692,1740936670358,-1326.84,0.00026575,2]
[355151693,1740936670368,-601.46,0.00026575,2]
[355151694,1740936670378,-1957.9,0.00026575,2]
[355151695,1740936670392,-8310.8,0.00026575,2]
[355151696,1740936670403,-810.66,0.00026575,2]
[355151697,1740936670413,-799.92,0.00026575,2]
[355151698,1740936670424,-500.0,0.00026575,2]
[355151699,1740936670435,-1401.29,0.00026575,2]
[355151700,1740936670446,-500.0,0.00026575,2]
[355151701,1740936670457,-500.0,0.00026575,2]
[355151702,1740936670468,-1973.31,0.00026575,2]
[355151703,1740936670480,-775.25,0.00026575,2]
[355151704,1740936670492,-7254.96,0.00026575,2]
[355151705,1740936670513,-500.0,0.00026575,2]
[355151706,1740936670530,-266.79756266,0.00026662,2]
[355151707,1740936670542,-173.06,0.00026725,2]
[355151708,1740936670555,-162.35,0.00026768,2]
[355151709,1740936670568,-2305.69924369,0.00026777,2]
[355151710,1740936670579,-1500.0,0.000268,9]
[355151711,1740936670591,-2723.45964108,0.00026811,2]
[355151712,1740936670602,-500.0,0.00026815,2]
[355151713,1740936670614,-505.79,0.00026815,2]
[355151714,1740936670626,-500.0,0.00026815,2]
[355151715,1740936670643,-500.0,0.00026816,2]
[355151716,1740936670653,-500.0,0.00026816,2]
[355151717,1740936670663,-500.0,0.00026816,2]
[355151718,1740936670674,-500.0,0.00026816,2]
[355151719,1740936670684,-500.0,0.00026816,2]
[355151720,1740936670695,-500.0,0.00026816,2]
[355151721,1740936670705,-500.0,0.00026816,2]
[355151722,1740936670715,-500.0,0.00026816,2]
[355151723,1740936670726,-500.0,0.00026816,2]
[355151724,1740936670736,-500.0,0.00026816,2]
[355151725,1740936670746,-500.0,0.00026816,2]
[355151726,1740936670756,-500.0,0.00026816,2]
[355151727,1740936670766,-500.0,0.00026816,2]
[355151728,1740936670776,-500.0,0.00026816,2]
[355151729,1740936670786,-500.0,0.00026816,2]
[355151730,1740936670796,-500.0,0.00026816,2]
[355151731,1740936670807,-500.0,0.00026816,2]
[355151732,1740936670816,-500.0,0.00026816,2]
[355151733,1740936670826,-500.0,0.00026816,2]
[355151734,1740936670837,-500.0,0.00026816,2]
[355151735,1740936670847,-500.0,0.00026816,2]
[355151736,1740936670857,-500.0,0.00026816,2]
[355151737,1740936670867,-500.0,0.00026816,2]
[355151738,1740936670877,-500.0,0.00026816,2]
[355151739,1740936670892,-500.0,0.00026816,2]
[355151740,1740936670903,-565.95,0.00026816,2]
[355151741,1740936670914,-587.3,0.00026816,2]
[355151742,1740936670924,-500.0,0.00026816,2]
[355151743,1740936670933,-583.26,0.00026816,2]
[355151744,1740936670944,-500.0,0.00026816,2]
[355151745,1740936670954,-500.0,0.00026816,2]
[355151746,1740936670964,-500.0,0.00026816,2]
[355151747,1740936670974,-500.0,0.00026816,2]
[355151748,1740936670984,-500.0,0.00026816,2]
[355151749,1740936670994,-527.29,0.00026816,2]
[355151750,1740936671003,-500.0,0.00026816,2]
[355151751,1740936671013,-500.0,0.00026816,2]
[355151752,1740936671023,-500.0,0.00026816,2]
[355151753,1740936671033,-500.0,0.00026816,2]
[355151754,1740936671043,-500.0,0.00026816,2]
[355151755,1740936671053,-500.0,0.00026816,2]
[355151756,1740936671063,-405.31,0.00026816,2]
[355151757,1740936671072,-500.0,0.00026816,2]
[355151758,1740936671082,-500.0,0.00026816,2]
[355151759,1740936671092,-500.0,0.00026816,2]
[355151760,1740936671102,-1000.0,0.00026816,2]
[355151761,1740936671112,-500.0,0.00026816,2]
[355151762,1740936671122,-1367.43,0.00026816,2]
[355151763,1740936671135,-500.0,0.00026816,2]
[355151764,1740936671145,-1489.98,0.00026816,2]
[355151765,1740936671155,-216.97,0.00026816,2]
[355151766,1740936671165,-500.0,0.00026816,2]
[355151767,1740936671174,-637.17,0.00026816,2]
[355151768,1740936671184,-504.63,0.00026816,2]
[355151769,1740936671194,-500.0,0.00026816,2]
[355151770,1740936671204,-500.0,0.00026816,2]
[355151771,1740936671214,-1048.52,0.00026816,2]
[355151772,1740936671224,-500.0,0.00026816,2]
[355151773,1740936671233,-2495.65,0.00026816,2]
[355151774,1740936671243,-500.0,0.00026816,2]
[355151775,1740936671254,-592.96,0.00026816,2]
[355151776,1740936671263,-2584.12,0.00026816,2]
[355151777,1740936671273,-634.06,0.00026816,2]
[355151778,1740936671284,-500.0,0.00026816,2]
[355151779,1740936671293,-500.0,0.00026816,2]
[355151780,1740936671303,-1864.87,0.00026816,2]
[355151781,1740936671314,-500.0,0.00026816,2]
[355151782,1740936671324,-900.18,0.00026816,2]
[355151783,1740936671334,-828.36,0.00026816,2]
[355151784,1740936671344,-1132.79,0.00026816,2]
[355151785,1740936671354,-656.73,0.00026816,2]
[355151786,1740936671364,-500.0,0.00026816,2]
[355151787,1740936671374,-985.57,0.00026816,2]
[355151788,1740936671387,-395.62330219,0.00026816,2]
[355151789,1740936671677,-369.16669781,0.00026816,2]
[355151790,1740936671689,-500.0,0.00026816,2]
[355151791,1740936671701,-500.0,0.00026816,2]
[355151792,1740936671712,-537.49,0.00026816,2]
[355151793,1740936671725,-500.0,0.00026816,2]
[355151794,1740936671736,-1124.47,0.00026816,2]
[355151795,1740936671748,-500.0,0.00026816,2]
[355151796,1740936671759,-500.0,0.00026816,2]
[355151797,1740936671770,-500.0,0.00026816,2]
[355151798,1740936671782,-3007.27,0.00026816,2]
[355151799,1740936671794,-500.0,0.00026817,2]
[355151800,1740936671806,-500.0,0.00026817,2]
[355151801,1740936671818,-556.46876569,0.00026817,2]
[355151802,1740936671912,-500.0,0.00026817,2]
[355151803,1740936671924,-708.04,0.00026817,2]
[355151804,1740936671936,-456.2685169,0.00026817,2]
[355151805,1740936671946,-500.0,0.00026817,2]
[355151806,1740936671957,-714.91,0.00026817,2]
[355151807,1740936671968,-500.0,0.00026817,2]
[355151808,1740936671980,-500.0,0.00026817,2]
[355151809,1740936671990,-500.0,0.00026817,2]
[355151810,1740936672007,-500.0,0.00026817,2]
[355151811,1740936672019,-555.82,0.00026817,2]
[355151812,1740936672032,-609.57,0.00026817,2]
[355151813,1740936672043,-722.13,0.00026817,2]
[355151814,1740936672054,-500.0,0.00026817,2]
[355151815,1740936672064,-500.0,0.00026817,2]
[355151816,1740936672075,-784.49,0.00026817,2]
[355151817,1740936672085,-500.0,0.00026817,2]
[355151818,1740936672095,-500.0,0.00026817,2]
[355151819,1740936672105,-796.39,0.00026817,2]
[355151820,1740936672116,-783.83,0.00026817,2]
[355151821,1740936672127,-500.0,0.00026817,2]
[355151822,1740936672141,-500.0,0.00026817,2]
[355151823,1740936672152,-595.44,0.00026817,2]
[355151824,1740936672162,-684.73,0.00026817,2]
[355151825,1740936672173,-614.23,0.00026817,2]
[355151826,1740936672185,-706.47,0.00026817,2]
[355151827,1740936672196,-500.0,0.00026817,2]
[355151828,1740936672209,-500.0,0.00026817,2]
[355151829,1740936672221,-619.3,0.00026817,2]
[355151830,1740936672233,-500.0,0.00026817,2]
[355151831,1740936672245,-500.0,0.00026817,2]
[355151832,1740936672256,-500.0,0.00026817,2]
[355151833,1740936672267,-500.0,0.00026817,2]
[355151834,1740936672279,-500.0,0.00026817,2]
[355151835,1740936672291,-500.0,0.00026817,2]
[355151836,1740936672303,-500.0,0.00026817,2]
[355151837,1740936672316,-571.71,0.00026817,2]
[355151838,1740936672327,-500.0,0.00026817,2]
[355151839,1740936672341,-595.9,0.00026817,2]
[355151840,1740936672352,-500.0,0.00026817,2]
[355151841,1740936672364,-825.14,0.00026817,2]
[355151842,1740936672376,-853.07,0.00026817,2]
[355151843,1740936672392,-902.34,0.00026817,2]
[355151844,1740936672404,-671.39,0.00026817,2]
[355151845,1740936672416,-230.46,0.00026817,2]
[355151846,1740936672427,-846.77,0.00026817,2]
[355151847,1740936672440,-500.0,0.00026817,2]
[355151848,1740936672451,-889.33,0.00026817,2]
[355151849,1740936672463,-723.76,0.00026817,2]
[355151850,1740936672475,-986.05,0.00026817,2]
[355151851,1740936672487,-511.89,0.00026817,2]
[355151852,1740936672504,-1272.09,0.00026817,2]
[355151853,1740936672515,-552.48,0.00026817,2]
[355151854,1740936672527,-500.0,0.00026818,2]
[355151855,1740936672547,-163.84574343,0.00026819,2]
[355151856,1740936672559,-520.26481732,0.00026819,2]
[355151857,1740936672572,-500.0,0.00026819,2]
[355151858,1740936672587,-500.0,0.00026819,2]
[355151859,1740936672600,-500.0,0.00026819,2]
[355151860,1740936672613,-500.0,0.00026819,2]
[355151861,1740936672625,-500.0,0.00026819,2]
[355151862,1740936672648,-500.0,0.00026819,2]
[355151863,1740936672661,-500.0,0.00026819,2]
[355151864,1740936672673,-500.0,0.00026819,2]
[355151865,1740936672685,-500.0,0.00026819,2]
[355151866,1740936672697,-749.52,0.00026819,2]
[355151867,1740936672710,-500.0,0.00026819,2]
[355151868,1740936672723,-500.0,0.00026819,2]
[355151869,1740936672735,-500.0,0.00026819,2]
[355151870,1740936672747,-579.15,0.00026819,2]
[355151871,1740936672759,-500.0,0.00026819,2]
[355151872,1740936672772,-500.0,0.00026819,2]
[355151873,1740936672783,-943.25,0.00026848,2]
[355151874,1740936672795,-338.675155,0.00026848,2]
[355151875,1740936672808,-500.0,0.00026848,2]
[355151876,1740936672820,-1107.04,0.00026848,2]
[355151877,1740936672832,-355.414101,0.00026848,2]
[355151878,1740936672843,-2678.19,0.00026848,2]
[355151879,1740936672860,-1356.29,0.00026848,2]
[355151880,1740936672872,-1871.2,0.00026848,2]
[355151881,1740936672888,-1213.06,0.00026848,2]
[355151882,1740936672901,-1601.31,0.00026848,2]
[355151883,1740936672912,-1696.09,0.00026848,2]
[355151884,1740936672925,-925.66,0.00026848,2]
[355151885,1740936672938,-1548.63,0.00026848,2]
[355151886,1740936672950,-994.45,0.00026848,2]
[355151887,1740936672962,-1838.97,0.00026848,2]
[355151888,1740936672974,-2241.09,0.00026848,2]
[355151889,1740936672988,-1192.77,0.00026848,2]
[355151890,1740936673001,-1027.42,0.00026848,2]
[355151891,1740936673013,-1424.18,0.00026848,2]
[355151892,1740936673027,-613.43,0.00026848,2]
[355151893,1740936673041,-1363.11,0.00026848,2]
[355151894,1740936673054,-618.55,0.00026848,2]
[355151895,1740936673071,-647.85,0.00026848,2]
[355151896,1740936673082,-1050.23,0.00026848,2]
[355151897,1740936673095,-623.46,0.00026848,2]
[355151898,1740936673108,-500.0,0.00026848,2]
[355151899,1740936673121,-563.66,0.00026849,2]
[355151900,1740936673137,-500.0,0.00026849,2]
[355151901,1740936673149,-601.08,0.00026849,2]
[355151902,1740936673162,-500.0,0.00026849,2]
[355151903,1740936673174,-500.0,0.00026849,2]
[355151904,1740936673185,-500.0,0.00026849,2]
[355151905,1740936673197,-539.3,0.00026849,2]
[355151906,1740936673208,-500.14,0.00026849,2]
[355151907,1740936673221,-500.0,0.00026849,2]
[355151908,1740936673232,-500.0,0.00026849,2]
[355151909,1740936673244,-584.1,0.00026849,2]
[355151910,1740936673255,-500.0,0.00026849,2]
[355151911,1740936673268,-500.0,0.00026849,2]
[355151912,1740936673279,-545.66,0.00026849,2]
[355151913,1740936673290,-500.0,0.00026849,2]
[355151914,1740936673303,-500.0,0.00026849,2]
[355151915,1740936673314,-500.0,0.00026849,2]
[355151916,1740936673326,-500.0,0.00026849,2]
[355151917,1740936673337,-500.0,0.00026849,2]
[355151918,1740936673348,-500.0,0.00026849,2]
[355151919,1740936673360,-203.04,0.00026849,2]
[355151920,1740936673374,-500.0,0.00026849,2]
[355151921,1740936673392,-526.45,0.00026849,2]
[355151922,1740936673404,-561.12,0.00026849,2]
[355151923,1740936673416,-533.44,0.00026849,2]
[355151924,1740936673428,-748.22,0.00026849,2]
[355151925,1740936673439,-500.0,0.00026849,2]
[355151926,1740936673450,-500.0,0.00026849,2]
[355151927,1740936673460,-845.83,0.00026849,2]
[355151928,1740936673470,-911.47,0.00026849,2]
[355151929,1740936673481,-551.99,0.00026849,2]
[355151930,1740936673491,-500.0,0.00026849,2]
[355151931,1740936673505,-823.11,0.00026849,2]
[355151932,1740936673515,-786.8,0.00026849,2]
[355151933,1740936673524,-500.0,0.00026849,2]
[355151934,1740936673535,-500.0,0.00026849,2]
[355151935,1740936673547,-597.31,0.00026849,2]
[355151936,1740936673558,-688.82,0.00026849,2]
[355151937,1740936673568,-947.42,0.00026849,2]
[355151938,1740936673579,-1251.58,0.00026849,2]
[355151939,1740936673603,-1020.64,0.00026849,2]
[355151940,1740936673617,-2345.36,0.00026849,2]
[355151941,1740936673631,-1562.13,0.00026849,2]
[355151942,1740936673648,-1688.5,0.00026849,2]
[355151943,1740936673659,-1057.44,0.00026849,2]
[355151944,1740936673670,-1830.8,0.00026849,2]
[355151945,1740936673682,-1336.41,0.00026849,2]
[355151946,1740936673692,-767.39,0.00026849,2]
[355151947,1740936673704,-2213.46,0.00026849,2]
[355151948,1740936673714,-500.0,0.00026849,2]
[355151949,1740936673725,-1366.85,0.00026849,2]
[355151950,1740936673737,-500.0,0.00026849,2]
[355151951,1740936673748,-688.32,0.00026849,2]
[355151952,1740936673759,-2063.11,0.00026849,2]
[355151953,1740936673771,-500.0,0.00026849,2]
[355151954,1740936673783,-500.0,0.00026849,2]
[355151955,1740936673794,-500.0,0.00026849,2]
[355151956,1740936673804,-500.0,0.00026849,2]
[355151957,1740936673814,-620.51,0.00026849,2]
[355151958,1740936673826,-1466.04,0.00026849,2]
[355151959,1740936673838,-518.56,0.00026849,2]
[355151960,1740936673848,-1099.43,0.00026849,2]
[355151961,1740936673858,-1231.49,0.00026849,2]
[355151962,1740936673869,-500.0,0.00026849,2]
[355151963,1740936673879,-500.0,0.00026849,2]
[355151964,1740936673894,-565.79,0.00026849,2]
[355151965,1740936673904,-594.39,0.00026849,2]
[355151966,1740936673915,-500.0,0.00026849,2]
[355151967,1740936673925,-1282.11,0.00026849,2]
[355151968,1740936673935,-500.0,0.00026849,2]
[355151969,1740936673946,-500.0,0.00026849,2]
[355151970,1740936673956,-500.0,0.00026849,2]
[355151971,1740936673967,-1287.52,0.00026849,2]
[355151972,1740936673977,-691.44,0.00026849,2]
[355151973,1740936673987,-1137.27,0.00026849,2]
[355151974,1740936673999,-500.0,0.00026849,2]
[355151975,1740936674010,-975.02,0.00026849,2]
[355151976,1740936674022,-500.0,0.00026849,2]
[355151977,1740936674033,-1326.84,0.00026849,2]
[355151978,1740936674046,-601.46,0.00026849,2]
[355151979,1740936674058,-1957.9,0.00026849,2]
[355151980,1740936674071,-8310.8,0.00026849,2]
[355151981,1740936674296,-810.66,0.00026849,2]
[355151982,1740936674308,-799.92,0.00026849,2]
[355151983,1740936674320,-500.0,0.00026849,2]
[355151984,1740936674336,-1401.29,0.00026849,2]
[355151985,1740936674347,-500.0,0.00026849,2]
[355151986,1740936674359,-500.0,0.00026849,2]
[355151987,1740936674370,-1973.31,0.00026849,2]
[355151988,1740936674381,-775.25,0.00026849,2]
[355151989,1740936674397,-7254.96,0.00026849,2]
[355151990,1740936674408,-500.0,0.00026849,2]
[355151991,1740936674420,-390.71392105,0.00026893,2]
[355151992,1740936674432,-2000.0,0.000269,9]
[355151993,1740936674443,-3921.0,0.00026935,2]
[355151994,1740936674453,-642.0,0.00026935,2]
[355151995,1740936674465,-288.80845255,0.00026943,2]
[355151996,1740936674476,-1000.0,0.00026961,2]
[355151997,1740936674487,-318.1165487,0.0002697,2]
[355151998,1740936674501,-600.0,0.00027,2]
[355151999,1740936674511,-331.0,0.00027,2]
[355152000,1740936674522,-191695.48726835,0.00027068,2]
[355152001,1740936674545,-92624.52974558,0.00027068,2]
[355152002,1740936674561,-20748.98298607,0.00027068,2]
[355152003,1740936674573,-500.0,0.00027089,2]
[355152004,1740936674586,-505.79,0.00027089,2]
[355152005,1740936674597,-500.0,0.00027089,2]
[355152006,1740936674608,-300.0,0.0002709,10]
[355152007,1740936674618,-500.0,0.0002709,2]
[355152008,1740936674630,-500.0,0.0002709,2]
[355152009,1740936674645,-500.0,0.0002709,2]
[355152010,1740936674656,-500.0,0.0002709,2]
[355152011,1740936674668,-500.0,0.0002709,2]
[355152012,1740936674679,-500.0,0.0002709,2]
[355152013,1740936674691,-500.0,0.0002709,2]
[355152014,1740936674703,-500.0,0.0002709,2]
[355152015,1740936674714,-500.0,0.0002709,2]
[355152016,1740936674726,-500.0,0.0002709,2]
[355152017,1740936674737,-500.0,0.0002709,2]
[355152018,1740936674747,-500.0,0.0002709,2]
[355152019,1740936674758,-500.0,0.0002709,2]
[355152020,1740936674768,-500.0,0.0002709,2]
[355152021,1740936674778,-500.0,0.0002709,2]
[355152022,1740936674787,-500.0,0.0002709,2]
[355152023,1740936674797,-500.0,0.0002709,2]
[355152024,1740936674807,-500.0,0.0002709,2]
[355152025,1740936674816,-500.0,0.0002709,2]
[355152026,1740936674827,-500.0,0.0002709,2]
[355152027,1740936674839,-500.0,0.0002709,2]
[355152028,1740936674854,-500.0,0.0002709,2]
[355152029,1740936674864,-500.0,0.0002709,2]
[355152030,1740936674875,-500.0,0.0002709,2]
[355152031,1740936674890,-500.0,0.0002709,2]
[355152032,1740936674901,-587.3,0.0002709,2]
[355152033,1740936674912,-500.0,0.0002709,2]
[355152034,1740936674923,-583.26,0.0002709,2]
[355152035,1740936674934,-500.0,0.0002709,2]
[355152036,1740936674944,-500.0,0.0002709,2]
[355152037,1740936674955,-500.0,0.0002709,2]
[355152038,1740936674967,-500.0,0.0002709,2]
[355152039,1740936674977,-500.0,0.0002709,2]
[355152040,1740936674987,-527.29,0.0002709,2]
[355152041,1740936674998,-500.0,0.0002709,2]
[355152042,1740936675008,-500.0,0.0002709,2]
[355152043,1740936675019,-500.0,0.0002709,2]
[355152044,1740936675029,-500.0,0.0002709,2]
[355152045,1740936675041,-500.0,0.0002709,2]
[355152046,1740936675052,-500.0,0.0002709,2]
[355152047,1740936675063,-500.0,0.0002709,2]
[355152048,1740936675074,-352.73337638,0.0002709,2]
[355152049,1740936675085,-500.0,0.0002709,2]
[355152050,1740936675095,-1000.0,0.0002709,2]
[355152051,1740936675106,-500.0,0.0002709,2]
[355152052,1740936675117,-1367.43,0.0002709,2]
[355152053,1740936675129,-500.0,0.0002709,2]
[355152054,1740936675147,-1489.98,0.0002709,2]
[355152055,1740936675159,-500.0,0.0002709,2]
[355152056,1740936675170,-637.17,0.0002709,2]
[355152057,1740936675180,-504.63,0.0002709,2]
[355152058,1740936675191,-500.0,0.0002709,2]
[355152059,1740936675202,-500.0,0.0002709,2]
[355152060,1740936675213,-1048.52,0.0002709,2]
[355152061,1740936675224,-500.0,0.0002709,2]
[355152062,1740936675235,-2495.65,0.0002709,2]
[355152063,1740936675248,-500.0,0.0002709,2]
[355152064,1740936675258,-592.96,0.0002709,2]
[355152065,1740936675270,-2584.12,0.0002709,2]
[355152066,1740936675280,-634.06,0.0002709,2]
[355152067,1740936675291,-500.0,0.0002709,2]
[355152068,1740936675303,-500.0,0.0002709,2]
[355152069,1740936675313,-1864.87,0.0002709,2]
[355152070,1740936675325,-500.0,0.0002709,2]
[355152071,1740936675335,-900.18,0.0002709,2]
[355152072,1740936675346,-828.36,0.0002709,2]
[355152073,1740936675357,-1132.79,0.0002709,2]
[355152074,1740936675368,-656.73,0.0002709,2]
[355152075,1740936675378,-500.0,0.0002709,2]
[355152076,1740936675394,-985.57,0.0002709,2]
[355152077,1740936675405,-764.79,0.0002709,2]
[355152078,1740936675416,-500.0,0.0002709,2]
[355152079,1740936675426,-500.0,0.0002709,2]
[355152080,1740936675437,-537.49,0.0002709,2]
[355152081,1740936675448,-500.0,0.0002709,2]
[355152082,1740936675458,-1124.47,0.0002709,2]
[355152083,1740936675472,-500.0,0.0002709,2]
[355152084,1740936675482,-500.0,0.0002709,2]
[355152085,1740936675493,-500.0,0.0002709,2]
[355152086,1740936675508,-3007.27,0.0002709,2]
[355152087,1740936675518,-500.0,0.00027091,2]
[355152088,1740936675529,-500.0,0.00027091,2]
[355152089,1740936675540,-500.0,0.00027091,2]
[355152090,1740936675551,-708.04,0.00027091,2]
[355152091,1740936675562,-500.0,0.00027091,2]
[355152092,1740936675572,-714.91,0.00027091,2]
[355152093,1740936675583,-500.0,0.00027091,2]
[355152094,1740936675594,-500.0,0.00027091,2]
[355152095,1740936675604,-500.0,0.00027091,2]
[355152096,1740936675615,-500.0,0.00027091,2]
[355152097,1740936675626,-555.82,0.00027091,2]
[355152098,1740936675641,-609.57,0.00027091,2]
[355152099,1740936675652,-722.13,0.00027091,2]
[355152100,1740936675662,-500.0,0.00027091,2]
[355152101,1740936675673,-294.86223594,0.00027091,2]
[355152102,1740936675683,-784.49,0.00027091,2]
[355152103,1740936675694,-500.0,0.00027091,2]
[355152104,1740936675704,-500.0,0.00027091,2]
[355152105,1740936675715,-796.39,0.00027091,2]
[355152106,1740936675725,-783.83,0.00027091,2]
[355152107,1740936675736,-500.0,0.00027091,2]
[355152108,1740936675747,-500.0,0.00027091,2]
[355152109,1740936675758,-595.44,0.00027091,2]
[355152110,1740936675768,-684.73,0.00027091,2]
[355152111,1740936675779,-614.23,0.00027091,2]
[355152112,1740936675790,-706.47,0.00027091,2]
[355152113,1740936675800,-500.0,0.00027091,2]
[355152114,1740936675810,-500.0,0.00027091,2]
[355152115,1740936675821,-500.0,0.00027091,2]
[355152116,1740936675832,-500.0,0.00027091,2]
[355152117,1740936675844,-500.0,0.00027091,2]
[355152118,1740936675854,-500.0,0.00027091,2]
[355152119,1740936675865,-500.0,0.00027091,2]
[355152120,1740936675875,-500.0,0.00027091,2]
[355152121,1740936675890,-500.0,0.00027091,2]
[355152122,1740936675901,-571.71,0.00027091,2]
[355152123,1740936675912,-500.0,0.00027091,2]
[355152124,1740936675922,-595.9,0.00027091,2]
[355152125,1740936675933,-500.0,0.00027091,2]
[355152126,1740936675943,-825.14,0.00027091,2]
[355152127,1740936675954,-853.07,0.00027091,2]
[355152128,1740936675964,-902.34,0.00027091,2]
[355152129,1740936675975,-671.39,0.00027091,2]
[355152130,1740936675985,-846.77,0.00027091,2]
[355152131,1740936675996,-500.0,0.00027091,2]
[355152132,1740936676007,-889.33,0.00027091,2]
[355152133,1740936676016,-723.76,0.00027091,2]
[355152134,1740936676027,-986.05,0.00027091,2]
[355152135,1740936676037,-511.89,0.00027091,2]
[355152136,1740936676047,-1272.09,0.00027091,2]